Workbook

Sheet by country
A1: United Nations
A2: Population Division
A3: Department of Economic and Social Affairs
A5: World Population Prospects: The 2017 Revision
A6: Modified after file FERT/7: Age-specific fertility rates by region, subregion and country, 1950-2015 (births per 1,000 women)
A7: Estimates, 1950 - 2015
A8: POP/DB/WPP/Rev.2017/FERT/F07
A9: June 2017 - Copyright © 2017 by United Nations. All rights reserved
A10: Suggested citation: United Nations, Department of Economic and Social Affairs, Population Division (2017). World Population Prospects: The 2017 Revision, DVD Edition.
A11: Country | B11: Region | C11: Period | D11: Population | E11: Fertilità
E12: 15-19 | F12: 20-24 | G12: 25-29 | H12: 30-34 | I12: 35-39 | J12: 40-44 | K12: 45-49
A13: Canada | B13: Northern America | C13: 1950-1955 | D13: 14500439 | E13: 50 | F13: 202 | G13: 206 | H13: 149 | I13: 87 | J13: 31 | K13: 3
A14: Canada | B14: Northern America | C14: 1955-1960 | D14: 16626627 | E14: 58 | F14: 227 | G14: 223 | H14: 149 | I14: 88 | J14: 30 | K14: 3
A15: Canada | B15: Northern America | C15: 1960-1965 | D15: 18653204 | E15: 54 | F15: 224 | G15: 211 | H15: 140 | I15: 77 | J15: 27 | K15: 2
A16: Canada | B16: Northern America | C16: 1965-1970 | D16: 20402106 | E16: 45 | F16: 160 | G16: 156 | H16: 94 | I16: 50 | J16: 16 | K16: 1
A17: Canada | B17: Northern America | C17: 1970-1975 | D17: 22150929 | E17: 37 | F17: 119 | G17: 133 | H17: 70 | I17: 28 | J17: 7 | K17: 1
A18: Canada | B18: Northern America | C18: 1975-1980 | D18: 23729287 | E18: 30 | F18: 102 | G18: 126 | H18: 65 | I18: 20 | J18: 4 | K18: 0
A19: Canada | B19: Northern America | C19: 1980-1985 | D19: 25047604 | E19: 25 | F19: 89 | G19: 121 | H19: 69 | I19: 20 | J19: 3 | K19: 0
A20: Canada | B20: Northern America | C20: 1985-1990 | D20: 26585161 | E20: 23 | F20: 78 | G20: 119 | H20: 75 | I20: 24 | J20: 3 | K20: 0
A21: Canada | B21: Northern America | C21: 1990-1995 | D21: 28371825 | E21: 25 | F21: 76 | G21: 119 | H21: 86 | I21: 29 | J21: 4 | K21: 0
A22: Canada | B22: Northern America | C22: 1995-2000 | D22: 29897475 | E22: 20 | F22: 64 | G22: 104 | H22: 86 | I22: 33 | J22: 5 | K22: 0
A23: Canada | B23: Northern America | C23: 2000-2005 | D23: 31331723 | E23: 14 | F23: 52 | G23: 98 | H23: 93 | I23: 38 | J23: 6 | K23: 0
A24: Canada | B24: Northern America | C24: 2005-2010 | D24: 33029555 | E24: 14 | F24: 52 | G24: 99 | H24: 105 | I24: 49 | J24: 8 | K24: 0
A25: Canada | B25: Northern America | C25: 2010-2015 | D25: 35069655 | E25: 11 | F25: 44 | G25: 96 | H25: 108 | I25: 53 | J25: 10 | K25: 0
A26: United States of America | B26: Northern America | C26: 1950-1955 | D26: 163570017 | E26: 85 | F26: 218 | G26: 179 | H26: 110 | I26: 55 | J26: 15 | K26: 1
A27: United States of America | B27: Northern America | C27: 1955-1960 | D27: 177840654 | E27: 89 | F27: 249 | G27: 192 | H27: 113 | I27: 57 | J27: 15 | K27: 1
A28: United States of America | B28: Northern America | C28: 1960-1965 | D28: 192273786 | E28: 77 | F28: 224 | G28: 179 | H28: 103 | I28: 50 | J28: 14 | K28: 1
A29: United States of America | B29: Northern America | C29: 1965-1970 | D29: 203877222 | E29: 67 | F29: 172 | G29: 144 | H29: 78 | I29: 37 | J29: 10 | K29: 1
A30: United States of America | B30: Northern America | C30: 1970-1975 | D30: 213377720 | E30: 61 | F30: 132 | G30: 121 | H30: 60 | I30: 24 | J30: 6 | K30: 0
A31: United States of America | B31: Northern America | C31: 1975-1980 | D31: 223363618 | E31: 53 | F31: 112 | G31: 109 | H31: 57 | I31: 19 | J31: 4 | K31: 0
A32: United States of America | B32: Northern America | C32: 1980-1985 | D32: 234150502 | E32: 52 | F32: 110 | G32: 110 | H32: 64 | I32: 21 | J32: 4 | K32: 0
A33: United States of America | B33: Northern America | C33: 1985-1990 | D33: 245435738 | E33: 53 | F33: 110 | G33: 114 | H33: 74 | I33: 27 | J33: 5 | K33: 0
A34: United States of America | B34: Northern America | C34: 1990-1995 | D34: 257544159 | E34: 60 | F34: 113 | G34: 115 | H34: 80 | I34: 33 | J34: 6 | K34: 0
A35: United States of America | B35: Northern America | C35: 1995-2000 | D35: 272200741 | E35: 51 | F35: 108 | G35: 110 | H35: 85 | I35: 37 | J35: 7 | K35: 0
A36: United States of America | B36: Northern America | C36: 2000-2005 | D36: 287381793 | E36: 43 | F36: 104 | G36: 115 | H36: 94 | I36: 43 | J36: 9 | K36: 0
A37: United States of America | B37: Northern America | C37: 2005-2010 | D37: 300600492 | E37: 39 | F37: 101 | G37: 115 | H37: 98 | I37: 47 | J37: 10 | K37: 1
A38: United States of America | B38: Northern America | C38: 2010-2015 | D38: 314368801 | E38: 28 | F38: 82 | G38: 106 | H38: 98 | I38: 49 | J38: 10 | K38: 1
A42: sopravvivvenze/mortalità (meglio) | B42: si sono medificate nel tempo--> scrivi una funzione (NO MUMERO)
A43: aspettative di vita
A44: ANDAMENTO MORTALITA' NELLA NOSTRA AREA (NON SINGOLI PAESI) TRA IL 1950-2015 PER OGNI CLASSE DI ETA'
A45: ricava l(x), ricava mu(x)

Sheet by year
A1: United Nations
A2: Population Division
A3: Department of Economic and Social Affairs
A5: World Population Prospects: The 2017 Revision
A6: Modified after file FERT/7: Age-specific fertility rates by region, subregion and country, 1950-2015 (births per 1,000 women)
A7: Estimates, 1950 - 2015
A8: POP/DB/WPP/Rev.2017/FERT/F07
A9: June 2017 - Copyright © 2017 by United Nations. All rights reserved
A10: Suggested citation: United Nations, Department of Economic and Social Affairs, Population Division (2017). World Population Prospects: The 2017 Revision, DVD Edition.
A11: Country | B11: Region | C11: Period | D11: Population | E11: Fertilità
E12: 15-19 | F12: 20-24 | G12: 25-29 | H12: 30-34 | I12: 35-39 | J12: 40-44 | K12: 45-49
A13: Canada | B13: Northern America | C13: 1950-1955 | D13: 14500439 | E13: 50 | F13: 202 | G13: 206 | H13: 149 | I13: 87 | J13: 31 | K13: 3
A14: United States of America | B14: Northern America | C14: 1950-1955 | D14: 163570017 | E14: 85 | F14: 218 | G14: 179 | H14: 110 | I14: 55 | J14: 15 | K14: 1
A16: Canada | B16: Northern America | C16: 1955-1960 | D16: 16626627 | E16: 58 | F16: 227 | G16: 223 | H16: 149 | I16: 88 | J16: 30 | K16: 3
A17: United States of America | B17: Northern America | C17: 1955-1960 | D17: 177840654 | E17: 89 | F17: 249 | G17: 192 | H17: 113 | I17: 57 | J17: 15 | K17: 1
A19: Canada | B19: Northern America | C19: 1960-1965 | D19: 18653204 | E19: 54 | F19: 224 | G19: 211 | H19: 140 | I19: 77 | J19: 27 | K19: 2
A20: United States of America | B20: Northern America | C20: 1960-1965 | D20: 192273786 | E20: 77 | F20: 224 | G20: 179 | H20: 103 | I20: 50 | J20: 14 | K20: 1
A22: Canada | B22: Northern America | C22: 1965-1970 | D22: 20402106 | E22: 45 | F22: 160 | G22: 156 | H22: 94 | I22: 50 | J22: 16 | K22: 1
A23: United States of America | B23: Northern America | C23: 1965-1970 | D23: 203877222 | E23: 67 | F23: 172 | G23: 144 | H23: 78 | I23: 37 | J23: 10 | K23: 1
A25: Canada | B25: Northern America | C25: 1970-1975 | D25: 22150929 | E25: 37 | F25: 119 | G25: 133 | H25: 70 | I25: 28 | J25: 7 | K25: 1
A26: United States of America | B26: Northern America | C26: 1970-1975 | D26: 213377720 | E26: 61 | F26: 132 | G26: 121 | H26: 60 | I26: 24 | J26: 6 | K26: 0
A28: Canada | B28: Northern America | C28: 1975-1980 | D28: 23729287 | E28: 30 | F28: 102 | G28: 126 | H28: 65 | I28: 20 | J28: 4 | K28: 0
A29: United States of America | B29: Northern America | C29: 1975-1980 | D29: 223363618 | E29: 53 | F29: 112 | G29: 109 | H29: 57 | I29: 19 | J29: 4 | K29: 0
A31: Canada | B31: Northern America | C31: 1980-1985 | D31: 25047604 | E31: 25 | F31: 89 | G31: 121 | H31: 69 | I31: 20 | J31: 3 | K31: 0
A32: United States of America | B32: Northern America | C32: 1980-1985 | D32: 234150502 | E32: 52 | F32: 110 | G32: 110 | H32: 64 | I32: 21 | J32: 4 | K32: 0
A34: Canada | B34: Northern America | C34: 1985-1990 | D34: 26585161 | E34: 23 | F34: 78 | G34: 119 | H34: 75 | I34: 24 | J34: 3 | K34: 0
A35: United States of America | B35: Northern America | C35: 1985-1990 | D35: 245435738 | E35: 53 | F35: 110 | G35: 114 | H35: 74 | I35: 27 | J35: 5 | K35: 0
A37: Canada | B37: Northern America | C37: 1990-1995 | D37: 28371825 | E37: 25 | F37: 76 | G37: 119 | H37: 86 | I37: 29 | J37: 4 | K37: 0
A38: United States of America | B38: Northern America | C38: 1990-1995 | D38: 257544159 | E38: 60 | F38: 113 | G38: 115 | H38: 80 | I38: 33 | J38: 6 | K38: 0
A40: Canada | B40: Northern America | C40: 1995-2000 | D40: 29897475 | E40: 20 | F40: 64 | G40: 104 | H40: 86 | I40: 33 | J40: 5 | K40: 0
A41: United States of America | B41: Northern America | C41: 1995-2000 | D41: 272200741 | E41: 51 | F41: 108 | G41: 110 | H41: 85 | I41: 37 | J41: 7 | K41: 0
A43: Canada | B43: Northern America | C43: 2000-2005 | D43: 31331723 | E43: 14 | F43: 52 | G43: 98 | H43: 93 | I43: 38 | J43: 6 | K43: 0
A44: United States of America | B44: Northern America | C44: 2000-2005 | D44: 287381793 | E44: 43 | F44: 104 | G44: 115 | H44: 94 | I44: 43 | J44: 9 | K44: 0
A46: Canada | B46: Northern America | C46: 2005-2010 | D46: 33029555 | E46: 14 | F46: 52 | G46: 99 | H46: 105 | I46: 49 | J46: 8 | K46: 0
A47: United States of America | B47: Northern America | C47: 2005-2010 | D47: 300600492 | E47: 39 | F47: 101 | G47: 115 | H47: 98 | I47: 47 | J47: 10 | K47: 1
A49: Canada | B49: Northern America | C49: 2010-2015 | D49: 35069655 | E49: 11 | F49: 44 | G49: 96 | H49: 108 | I49: 53 | J49: 10 | K49: 0
A50: United States of America | B50: Northern America | C50: 2010-2015 | D50: 314368801 | E50: 28 | F50: 82 | G50: 106 | H50: 98 | I50: 49 | J50: 10 | K50: 1

Sheet values
A1: Period | B1: Population | C1: Fertilità
C2: 15-19 | D2: 20-24 | E2: 25-29 | F2: 30-34 | G2: 35-39 | H2: 40-44 | I2: 45-49
A3: 1950-1955 | B3: ='by country'!D13+values!D26 -> 14500439 | C3: =('by country'!E13/1000*'by country'!$D13/2)+('by country'!E26/1000*'by country'!$D26/2) -> 7314237 | D3: =('by country'!F13/1000*'by country'!$D13/2)+('by country'!F26/1000*'by country'!$D26/2) -> 19293676 | E3: =('by country'!G13/1000*'by country'!$D13/2)+('by country'!G26/1000*'by country'!$D26/2) -> 16133062 | F3: =('by country'!H13/1000*'by country'!$D13/2)+('by country'!H26/1000*'by country'!$D26/2) -> 10076634 | G3: =('by country'!I13/1000*'by country'!$D13/2)+('by country'!I26/1000*'by country'!$D26/2) -> 5128945 | H3: =('by country'!J13/1000*'by country'!$D13/2)+('by country'!J26/1000*'by country'!$D26/2) -> 1451532 | I3: =('by country'!K13/1000*'by country'!$D13/2)+('by country'!K26/1000*'by country'!$D26/2) -> 103536
A4: 1955-1960 | B4: ='by country'!D14+values!D27 -> 16626627 | C4: =('by country'!E14/1000*'by country'!$D14/2)+('by country'!E27/1000*'by country'!$D27/2) -> 8396081 | D4: =('by country'!F14/1000*'by country'!$D14/2)+('by country'!F27/1000*'by country'!$D27/2) -> 24028284 | E4: =('by country'!G14/1000*'by country'!$D14/2)+('by country'!G27/1000*'by country'!$D27/2) -> 18926572 | F4: =('by country'!H14/1000*'by country'!$D14/2)+('by country'!H27/1000*'by country'!$D27/2) -> 11286681 | G4: =('by country'!I14/1000*'by country'!$D14/2)+('by country'!I27/1000*'by country'!$D27/2) -> 5800030 | H4: =('by country'!J14/1000*'by country'!$D14/2)+('by country'!J27/1000*'by country'!$D27/2) -> 1583204 | I4: =('by country'!K14/1000*'by country'!$D14/2)+('by country'!K27/1000*'by country'!$D27/2) -> 113860
A5: 1960-1965 | B5: ='by country'!D15+values!D28 -> 18653204 | C5: =('by country'!E15/1000*'by country'!$D15/2)+('by country'!E28/1000*'by country'!$D28/2) -> 7906177 | D5: =('by country'!F15/1000*'by country'!$D15/2)+('by country'!F28/1000*'by country'!$D28/2) -> 23623823 | E5: =('by country'!G15/1000*'by country'!$D15/2)+('by country'!G28/1000*'by country'!$D28/2) -> 19176417 | F5: =('by country'!H15/1000*'by country'!$D15/2)+('by country'!H28/1000*'by country'!$D28/2) -> 11207824 | G5: =('by country'!I15/1000*'by country'!$D15/2)+('by country'!I28/1000*'by country'!$D28/2) -> 5524993 | H5: =('by country'!J15/1000*'by country'!$D15/2)+('by country'!J28/1000*'by country'!$D28/2) -> 1597735 | I5: =('by country'!K15/1000*'by country'!$D15/2)+('by country'!K28/1000*'by country'!$D28/2) -> 114790
A6: 1965-1970 | B6: ='by country'!D16+values!D29 -> 20402106 | C6: =('by country'!E16/1000*'by country'!$D16/2)+('by country'!E29/1000*'by country'!$D29/2) -> 7288934 | D6: =('by country'!F16/1000*'by country'!$D16/2)+('by country'!F29/1000*'by country'!$D29/2) -> 19165610 | E6: =('by country'!G16/1000*'by country'!$D16/2)+('by country'!G29/1000*'by country'!$D29/2) -> 16270524 | F6: =('by country'!H16/1000*'by country'!$D16/2)+('by country'!H29/1000*'by country'!$D29/2) -> 8910111 | G6: =('by country'!I16/1000*'by country'!$D16/2)+('by country'!I29/1000*'by country'!$D29/2) -> 4281781 | H6: =('by country'!J16/1000*'by country'!$D16/2)+('by country'!J29/1000*'by country'!$D29/2) -> 1182603 | I6: =('by country'!K16/1000*'by country'!$D16/2)+('by country'!K29/1000*'by country'!$D29/2) -> 112140
A7: 1970-1975 | B7: ='by country'!D17+values!D30 -> 22150929 | C7: =('by country'!E17/1000*'by country'!$D17/2)+('by country'!E30/1000*'by country'!$D30/2) -> 6917813 | D7: =('by country'!F17/1000*'by country'!$D17/2)+('by country'!F30/1000*'by country'!$D30/2) -> 15400910 | E7: =('by country'!G17/1000*'by country'!$D17/2)+('by country'!G30/1000*'by country'!$D30/2) -> 14382389 | F7: =('by country'!H17/1000*'by country'!$D17/2)+('by country'!H30/1000*'by country'!$D30/2) -> 7176614 | G7: =('by country'!I17/1000*'by country'!$D17/2)+('by country'!I30/1000*'by country'!$D30/2) -> 2870646 | H7: =('by country'!J17/1000*'by country'!$D17/2)+('by country'!J30/1000*'by country'!$D30/2) -> 717661 | I7: =('by country'!K17/1000*'by country'!$D17/2)+('by country'!K30/1000*'by country'!$D30/2) -> 11075
A8: 1975-1980 | B8: ='by country'!D18+values!D31 -> 23729287 | C8: =('by country'!E18/1000*'by country'!$D18/2)+('by country'!E31/1000*'by country'!$D31/2) -> 6275075 | D8: =('by country'!F18/1000*'by country'!$D18/2)+('by country'!F31/1000*'by country'!$D31/2) -> 13718556 | E8: =('by country'!G18/1000*'by country'!$D18/2)+('by country'!G31/1000*'by country'!$D31/2) -> 13668262 | F8: =('by country'!H18/1000*'by country'!$D18/2)+('by country'!H31/1000*'by country'!$D31/2) -> 7137065 | G8: =('by country'!I18/1000*'by country'!$D18/2)+('by country'!I31/1000*'by country'!$D31/2) -> 2359247 | H8: =('by country'!J18/1000*'by country'!$D18/2)+('by country'!J31/1000*'by country'!$D31/2) -> 494186 | I8: =('by country'!K18/1000*'by country'!$D18/2)+('by country'!K31/1000*'by country'!$D31/2) -> 0
A9: 1980-1985 | B9: ='by country'!D19+values!D32 -> 25047604 | C9: =('by country'!E19/1000*'by country'!$D19/2)+('by country'!E32/1000*'by country'!$D32/2) -> 6401008 | D9: =('by country'!F19/1000*'by country'!$D19/2)+('by country'!F32/1000*'by country'!$D32/2) -> 13992896 | E9: =('by country'!G19/1000*'by country'!$D19/2)+('by country'!G32/1000*'by country'!$D32/2) -> 14393658 | F9: =('by country'!H19/1000*'by country'!$D19/2)+('by country'!H32/1000*'by country'!$D32/2) -> 8356958 | G9: =('by country'!I19/1000*'by country'!$D19/2)+('by country'!I32/1000*'by country'!$D32/2) -> 2709056 | H9: =('by country'!J19/1000*'by country'!$D19/2)+('by country'!J32/1000*'by country'!$D32/2) -> 505872 | I9: =('by country'!K19/1000*'by country'!$D19/2)+('by country'!K32/1000*'by country'!$D32/2) -> 0
A10: 1985-1990 | B10: ='by country'!D20+values!D33 -> 26585161 | C10: =('by country'!E20/1000*'by country'!$D20/2)+('by country'!E33/1000*'by country'!$D33/2) -> 6809776 | D10: =('by country'!F20/1000*'by country'!$D20/2)+('by country'!F33/1000*'by country'!$D33/2) -> 14535787 | E10: =('by country'!G20/1000*'by country'!$D20/2)+('by country'!G33/1000*'by country'!$D33/2) -> 15571654 | F10: =('by country'!H20/1000*'by country'!$D20/2)+('by country'!H33/1000*'by country'!$D33/2) -> 10078066 | G10: =('by country'!I20/1000*'by country'!$D20/2)+('by country'!I33/1000*'by country'!$D33/2) -> 3632404 | H10: =('by country'!J20/1000*'by country'!$D20/2)+('by country'!J33/1000*'by country'!$D33/2) -> 653467 | I10: =('by country'!K20/1000*'by country'!$D20/2)+('by country'!K33/1000*'by country'!$D33/2) -> 0
A11: 1990-1995 | B11: ='by country'!D21+values!D34 -> 28371825 | C11: =('by country'!E21/1000*'by country'!$D21/2)+('by country'!E34/1000*'by country'!$D34/2) -> 8080973 | D11: =('by country'!F21/1000*'by country'!$D21/2)+('by country'!F34/1000*'by country'!$D34/2) -> 15629374 | E11: =('by country'!G21/1000*'by country'!$D21/2)+('by country'!G34/1000*'by country'!$D34/2) -> 16496913 | F11: =('by country'!H21/1000*'by country'!$D21/2)+('by country'!H34/1000*'by country'!$D34/2) -> 11521755 | G11: =('by country'!I21/1000*'by country'!$D21/2)+('by country'!I34/1000*'by country'!$D34/2) -> 4660870 | H11: =('by country'!J21/1000*'by country'!$D21/2)+('by country'!J34/1000*'by country'!$D34/2) -> 829376 | I11: =('by country'!K21/1000*'by country'!$D21/2)+('by country'!K34/1000*'by country'!$D34/2) -> 0
A12: 1995-2000 | B12: ='by country'!D22+values!D35 -> 29897475 | C12: =('by country'!E22/1000*'by country'!$D22/2)+('by country'!E35/1000*'by country'!$D35/2) -> 7240094 | D12: =('by country'!F22/1000*'by country'!$D22/2)+('by country'!F35/1000*'by country'!$D35/2) -> 15655559 | E12: =('by country'!G22/1000*'by country'!$D22/2)+('by country'!G35/1000*'by country'!$D35/2) -> 16525709 | F12: =('by country'!H22/1000*'by country'!$D22/2)+('by country'!H35/1000*'by country'!$D35/2) -> 12854123 | G12: =('by country'!I22/1000*'by country'!$D22/2)+('by country'!I35/1000*'by country'!$D35/2) -> 5529022 | H12: =('by country'!J22/1000*'by country'!$D22/2)+('by country'!J35/1000*'by country'!$D35/2) -> 1027446 | I12: =('by country'!K22/1000*'by country'!$D22/2)+('by country'!K35/1000*'by country'!$D35/2) -> 0
A13: 2000-2005 | B13: ='by country'!D23+values!D36 -> 31331723 | C13: =('by country'!E23/1000*'by country'!$D23/2)+('by country'!E36/1000*'by country'!$D36/2) -> 6398031 | D13: =('by country'!F23/1000*'by country'!$D23/2)+('by country'!F36/1000*'by country'!$D36/2) -> 15758478 | E13: =('by country'!G23/1000*'by country'!$D23/2)+('by country'!G36/1000*'by country'!$D36/2) -> 18059708 | F13: =('by country'!H23/1000*'by country'!$D23/2)+('by country'!H36/1000*'by country'!$D36/2) -> 14963869 | G13: =('by country'!I23/1000*'by country'!$D23/2)+('by country'!I36/1000*'by country'!$D36/2) -> 6774011 | H13: =('by country'!J23/1000*'by country'!$D23/2)+('by country'!J36/1000*'by country'!$D36/2) -> 1387213 | I13: =('by country'!K23/1000*'by country'!$D23/2)+('by country'!K36/1000*'by country'!$D36/2) -> 0
A14: 2005-2010 | B14: ='by country'!D24+values!D37 -> 33029555 | C14: =('by country'!E24/1000*'by country'!$D24/2)+('by country'!E37/1000*'by country'!$D37/2) -> 6092916 | D14: =('by country'!F24/1000*'by country'!$D24/2)+('by country'!F37/1000*'by country'!$D37/2) -> 16039093 | E14: =('by country'!G24/1000*'by country'!$D24/2)+('by country'!G37/1000*'by country'!$D37/2) -> 18919491 | F14: =('by country'!H24/1000*'by country'!$D24/2)+('by country'!H37/1000*'by country'!$D37/2) -> 16463476 | G14: =('by country'!I24/1000*'by country'!$D24/2)+('by country'!I37/1000*'by country'!$D37/2) -> 7873336 | H14: =('by country'!J24/1000*'by country'!$D24/2)+('by country'!J37/1000*'by country'!$D37/2) -> 1635121 | I14: =('by country'!K24/1000*'by country'!$D24/2)+('by country'!K37/1000*'by country'!$D37/2) -> 150300
A15: 2010-2015 | B15: ='by country'!D25+values!D38 -> 35069655 | C15: =('by country'!E25/1000*'by country'!$D25/2)+('by country'!E38/1000*'by country'!$D38/2) -> 4594046 | D15: =('by country'!F25/1000*'by country'!$D25/2)+('by country'!F38/1000*'by country'!$D38/2) -> 13660653 | E15: =('by country'!G25/1000*'by country'!$D25/2)+('by country'!G38/1000*'by country'!$D38/2) -> 18344890 | F15: =('by country'!H25/1000*'by country'!$D25/2)+('by country'!H38/1000*'by country'!$D38/2) -> 17297833 | G15: =('by country'!I25/1000*'by country'!$D25/2)+('by country'!I38/1000*'by country'!$D38/2) -> 8631381 | H15: =('by country'!J25/1000*'by country'!$D25/2)+('by country'!J38/1000*'by country'!$D38/2) -> 1747192 | I15: =('by country'!K25/1000*'by country'!$D25/2)+('by country'!K38/1000*'by country'!$D38/2) -> 157184
A16: 2015-2020
A17: 2020-2025
A18: 2025-2030
A19: 2030-2035
A20: 2035-2040
A21: 2040-2045
A22: 2045-2050
A23: 2050-2055
A24: 2055-2060
A25: 2060-2065
A26: 2065-2070
A27: 2070-2075
A28: 2075-2080
A29: 2080-2085
A30: 2085-2090
A31: 2090-2095
A32: 2095-2100
